[Event "55th Ladies GM 2024"]
[Site "Belgrade9"]
[Date "2024.03.05"]
[Round "4.4"]
[White "Kulkarni Bhakti"]
[Black "Mehmed, Elif"]
[Result "0-1"]
[ECO "D02"]
[WhiteElo "2372"]
[BlackElo "2194"]
[Annotator "RC"]
[PlyCount "120"]
[EventDate "2024.03.02"]
[EventType "tourn"]
[EventCountry "SRB"]
[SourceTitle "playchess.com"]
[Source "ChessBase"]
[SourceQuality "1"]
[TimeControl "40/5400+30:1800+30"]

1. Nf3 {[%emt 0:00:34]} d5 {[%emt 0:00:11]} 2. g3 {[%emt 0:00:27]} Nf6 {[%emt 0:00:15]} 3. Bg2 {[%emt 0:00:21]} c6 {[%emt 0:00:25]} 4. O-O {[%emt 0:00:23]} Bg4 {[%emt 0:00:19]} 5. d4 {[%emt 0:00:43]} e6 {[%emt 0:02:41]} 6. h3 {[%emt 0:01:14]} Bf5 {[%emt 0:01:15]} 7. c4 {[%emt 0:01:23]} Nbd7 {[%emt 0:01:57]} 8. cxd5 {[%emt 0:06:43]} exd5 {[%emt 0:00:22]} 9. Qb3 {[%emt 0:00:19]} Qb6 {[%emt 0:01:34]} 10. Qe3+ {[%emt 0:00:25]} Be7 {[%emt 0:01:45]} 11. Nh4 {[%emt 0:05:57]} Bg6 {[%emt 0:06:57]} 12. Nc3 {[%emt 0:04:32]} Nf8 {[%emt 0:00:37]} 13. f4 {[%emt 0:05:41]} Bc2 {[%emt 0:00:26]} 14. Qd2 {[%emt 0:12:10]} Be4 {[%emt 0:05:45]} 15. Nxe4 {[%emt 0:01:22]} Nxe4 {[%emt 0:03:42]} 16. Bxe4 {[%emt 0:02:25]} dxe4 {[%emt 0:12:37]} 17. Nf5 {[%emt 0:01:06]} Ne6 {[%emt 0:00:32]} 18. e3 {[%emt 0:11:31]} Bb4 {[%emt 0:03:57]} 19. Qc2 {[%emt 0:04:10]} g6 {[%emt 0:00:17]} 20. Nh6 {[%emt 0:11:06]} f5 {[%emt 0:00:13]} 21. Qc4 {[%emt 0:00:44]} Ke7 {[%emt 0:01:39]} 22. g4 {[%emt 0:01:45]} Rhf8 {[%emt 0:02:55]} 23. a3 {[%emt 0:01:21]} Bd6 {[%emt 0:00:26]} 24. b4 {[%emt 0:06:00]} Nc7 {[%emt 0:10:14]} 25. Ra2 {[%emt 0:05:21]} a5 {[%emt 0:04:14]} 26. gxf5 {[%emt 0:03:34]} gxf5 {[%emt 0:00:16]} 27. Rg2 {[%emt 0:00:19]} Qb5 {[%emt 0:05:59]} 28. Qc2 {[%emt 0:05:45]} Ne6 {[%emt 0:01:47]} 29. bxa5 {[%emt 0:02:30]} Rxa5 {[%emt 0:00:54]} 30. Qd1 {[%emt 0:00:21]} Bxa3 {[%emt 0:02:05]} 31. Bd2 {[%emt 0:00:15]} Raa8 {[%emt 0:01:08]} 32. Be1 {[%emt 0:00:46]} Kd7 {[%emt 0:16:46]} 33. Qh5 {[%emt 0:00:46]} Kc7 {[%emt 0:00:15]} 34. Ng8 {[%emt 0:01:45]} Kb6 {[%emt 0:04:26]} 35. Qxh7 {[%emt 0:00:38]} Bc1 {[%emt 0:01:16]} 36. Bf2 {[%emt 0:00:15]} Bd2 {[%emt 0:01:54]} 37. d5 {[%emt 0:01:16]} Nc5 {[%emt 0:01:39]} 38. d6 {[%emt 0:00:55]} Nd3 {[%emt 0:00:37]} 39. Rg7 {[%emt 0:02:07]} Rab8 {[%emt 0:00:12]} 40. Rd1 {[%emt 0:00:26]} Bc3 {[%emt 0:04:39]} 41. Rg5 {[%emt 0:18:45]} Qb3 {[%emt 0:02:24]} 42. Qc7+ {[%emt 0:04:09]} Ka6 {[%emt 0:01:54]} 43. Rf1 {[%emt 0:01:02]} Rxg8 {[%emt 0:00:59]} 44. Bh4 {[%emt 0:00:31]} Bf6 {[%emt 0:10:41]} 45. Kh1 {[%emt 0:00:26]} Qb2 {[%emt 0:00:43]} 46. Qf7 {[%emt 0:02:15]} Bxg5 {[%emt 0:05:44]} 47. Bxg5 {[%emt 0:00:18]} Nf2+ {[%emt 0:03:17]} 48. Rxf2 {[%emt 0:01:30]} Qxf2 {[%emt 0:00:09]} 49. Qc4+ {[%emt 0:02:37]} b5 {[%emt 0:00:04]} 50. Qxc6+ {[%emt 0:00:04]} Rb6 {[%emt 0:00:07]} 51. Qc3 {[%emt 0:00:37]} Qf1+ {[%emt 0:00:11]} 52. Kh2 {[%emt 0:00:02]} Qe2+ {[%emt 0:01:06]} 53. Kg3 {[%emt 0:00:27]} Qd3 {[%emt 0:00:22]} 54. Qa1+ {[%emt 0:00:46]} Kb7 {[%emt 0:00:05]} 55. Qf6 {[%emt 0:00:10]} Qxe3+ {[%emt 0:00:41]} 56. Kh4 {[%emt 0:00:21]} Qe1+ {[%emt 0:00:24]} 57. Kh5 {[%emt 0:00:06]} Qd1+ {[%emt 0:00:35]} 58. Kh4 {[%emt 0:00:08]} Ka6 {[%emt 0:01:27]} 59. Qe6 {[%emt 0:01:08]} Rh8+ {[%emt 0:00:09]} 60. Bh6 {[%emt 0:00:02]} Rxh6+ {[%emt 0:00:09]} 0-1

[Event "55th Ladies GM 2024"]
[Site "Belgrade9"]
[Date "2024.03.05"]
[Round "4.5"]
[White "Maltsevskaya, Aleksandra"]
[Black "Vujovic, Vera"]
[Result "1-0"]
[ECO "A07"]
[WhiteElo "2374"]
[BlackElo "2175"]
[Annotator "TA"]
[PlyCount "59"]
[EventDate "2024.03.02"]
[EventType "tourn"]
[EventCountry "SRB"]
[SourceTitle "playchess.com"]
[Source "ChessBase"]
[SourceQuality "1"]
[TimeControl "40/5400+30:1800+30"]

{[%evp 11,59,10,6,0,1,2,4,29,27,13,56,48,36,43,34,3,55,51,64,56,62,34,206,183,252,255,456,443,756,751,1487,1169,1991,1914,29987,29988,29988,29989,29989,29990,29990,29991,29991,1209,1159,0,1131,1123,1124,1077]} 1. Nf3 {[%emt 0:00:03]} d5 {[%emt 0:00:09]} 2. g3 {[%emt 0:00:07]} Nf6 {[%emt 0:00:14]} 3. Bg2 {[%emt 0:00:07]} c6 {[%emt 0:00:06]} 4. O-O {[%emt 0:00:08]} Bg4 {[%emt 0:00:13]} 5. d3 {[%emt 0:00:09]} Nbd7 {[%emt 0:00:15]} 6. h3 {[%emt 0:00:13]} Bh5 {[%emt 0:00:12]} 7. Qe1 {[%emt 0:00:07]} e5 {[%emt 0:00:26]} 8. e4 {[%emt 0:00:06]} dxe4 {[%emt 0:01:56]} 9. dxe4 {[%emt 0:00:07] The position is equal.} Qc7 {[%emt 0:06:55]} 10. Nh4 {[%emt 0:03:38]} O-O-O {[%emt 0:09:58]} 11. Be3 {[%emt 0:28:16]} Nc5 {[%emt 0:10:46]} 12. Nd2 {[%emt 0:00:50]} Ne6 {[%emt 0:04:42]} 13. c3 {[%emt 0:00:50][%cal Ob2b4] Wards off Nd4} (13. Bxa7 b6 14. Nc4 Nd7 $17 (14... Qxa7 15. Nxe5 Qc7 16. Nxc6 $17) (14... Qxa7 15. Nxe5 Qc7 16. Nxc6 $17)) 13... g5 {[%emt 0:16:07]} ({Better is} 13... Bc5 $11) 14. Nf5 $14 {[%emt 0:00:06][%cal Od2c4]} Bg6 {[%emt 0:03:44][%cal Oe6f4]} 15. a4 {[%emt 0:00:31][%cal Ba2a4,Ba4a5,Ba5a6][%mdl 32]} (15. Bxa7 b6 $11) 15... Kb8 {[%emt 0:14:15]} 16. Nc4 {[%emt 0:00:45] Black must now prevent b4.} h6 $2 {[%emt 0:03:28]} (16... Nd5 $1 $14) 17. b4 $18 {[%emt 0:06:02]} Rg8 {[%emt 0:05:40] [#]} (17... Nd7 {was necessary.} 18. Qe2 f6) 18. a5 $1 {[%emt 0:00:10]} c5 $2 {[%emt 0:02:32]} (18... Nd7 {was called for.} 19. Qe2 h5) 19. b5 {[%emt 0:00:46]} Bxf5 {[%emt 0:01:38]} (19... Nd7 $142 20. Qe2 Rc8) 20. exf5 {[%emt 0:00:07][%cal Ob5b6] aiming for b6!} Nf4 {[%emt 0:05:59]} 21. b6 {[%emt 0:00:09]} Qe7 {[%emt 0:00:33]} 22. a6 {[%emt 0:08:48]} Nxg2 {[%emt 0:01:45]} 23. Qb1 {[%emt 0:01:25]} Nd5 {[%emt 0:07:04]} 24. bxa7+ {[%emt 0:01:05]} Ka8 {[%emt 0:00:23]} 25. Nb6+ {[%emt 0:03:04]} Nxb6 {[%emt 0:01:19]} 26. Qxb6 {[%emt 0:00:06]} (26. Kxg2 Qc7 $18 (26... Kxa7 $2 27. Qe4 $18)) 26... Rd7 {[%emt 0:00:49]} 27. Bxc5 {[%emt 0:01:08]} (27. Rfd1 $142 Bg7 28. Rxd7 (28. Kxg2 g4 $18) 28... Qxd7 29. Rb1 (29. Kxg2 Qc6+ 30. Qxc6 bxc6 $18) 29... Rb8 30. axb8=B (30. Bxc5 Bf8 31. Bxf8 Nf4 32. Bd6 Nxh3+ 33. Kh2 Qc8 34. axb8=Q+ Qxb8 35. axb7+ Qxb7 36. Qxb7#) 30... Kxb8 31. axb7 (31. Kxg2 Bf8 32. axb7 Bd6 33. Qa6 Qd8 34. Rb6 Bf8 35. Qa8+ Kc7 36. b8=Q+ Qxb8 37. Qc6+ Kd8 38. Rxb8+ Ke7 39. Bxc5#) (31. Qxb7+ Qxb7 32. Rxb7+ Ka8 $18) (31. Bxc5 Bf8 32. Bxf8 Nh4 33. Bd6+ Kc8 34. axb7+ Qxb7 35. Qxb7+ Kd8 36. Qe7+ Kc8 37. Qe8#) 31... Qc7 32. Qxc7+ (32. Kxg2 Qxb6 33. Rxb6 e4 $18) 32... Kxc7 33. b8=Q+ (33. b8=R Nxe3 34. fxe3 e4 $18) 33... Kd7 34. Rd1+ Ke7 35. Qd8#) 27... Qe8 {[%emt 0:00:56]} 28. axb7+ {[%emt 0:01:26]} Rxb7 {[%emt 0:00:10] [#]} 29. Qxb7+ {[%emt 0:00:08][%mdl 512]} Kxb7 {[%emt 0:00:11]} 30. a8=Q+ {[%emt 0:00:07] Weighted Error Value: White=0.57/Black=0.73.  Loses game:     	---       	Black=1      Mistake:       	---       	Black=4      Inaccurate:     	White=2     	Black=2      OK:         	White=3     	Black=3      Best:        	White=2     	---        Strong:       	White=1     	---} 1-0

[Event "55th Ladies GM 2024"]
[Site "Belgrade9"]
[Date "2024.03.06"]
[Round "5.1"]
[White "Vujovic, Vera"]
[Black "Pogorelskikh, Sofia"]
[Result "0-1"]
[ECO "B33"]
[WhiteElo "2175"]
[BlackElo "2214"]
[Annotator "RC"]
[PlyCount "130"]
[EventDate "2024.03.02"]
[EventType "tourn"]
[EventCountry "SRB"]
[SourceTitle "playchess.com"]
[Source "ChessBase"]
[SourceQuality "1"]
[TimeControl "40/5400+30:1800+30"]

1. e4 {[%emt 0:00:42]} c5 {[%emt 0:00:09]} 2. Nf3 {[%emt 0:00:09]} Nc6 {[%emt 0:00:10]} 3. d4 {[%emt 0:00:12]} cxd4 {[%emt 0:00:17]} 4. Nxd4 {[%emt 0:00:04]} Nf6 {[%emt 0:00:15]} 5. Nc3 {[%emt 0:00:05]} e5 {[%emt 0:00:10]} 6. Ndb5 {[%emt 1:32:18]} d6 {[%emt 0:00:12]} 7. Bg5 {[%emt 0:00:00]} a6 {[%emt 0:00:19]} 8. Na3 {[%emt 0:00:00]} b5 {[%emt 0:00:36]} 9. Nd5 {[%emt 0:00:00]} Be7 {[%emt 0:00:29]} 10. Bxf6 {[%emt 0:00:00]} Bxf6 {[%emt 0:00:29]} 11. c3 {[%emt 0:00:00]} Rb8 {[%emt 0:00:56]} 12. Nc2 {[%emt 0:00:00]} Bg5 {[%emt 0:00:34]} 13. a4 {[%emt 0:00:00]} bxa4 {[%emt 0:00:57]} 14. Ncb4 {[%emt 0:00:00]} Nxb4 {[%emt 0:01:02]} 15. Nxb4 {[%emt 0:00:00]} Bd7 {[%emt 0:04:40]} 16. Bxa6 {[%emt 0:00:00]} Qa5 {[%emt 0:06:38]} 17. Qxd6 {[%emt 0:00:00]} Rb6 {[%emt 0:02:52]} 18. Qd3 {[%emt 0:00:00]} Be6 {[%emt 0:05:26]} 19. Bc4 {[%emt 0:00:00]} Rxb4 {[%emt 0:11:29]} 20. cxb4 {[%emt 0:00:00]} Qxb4+ {[%emt 0:00:43]} 21. Qc3 {[%emt 0:00:00]} Qxc3+ {[%emt 0:03:44]} 22. bxc3 {[%emt 0:00:00]} Bxc4 {[%emt 0:00:08]} 23. Rxa4 {[%emt 0:00:00]} Be6 {[%emt 0:59:45]} 24. Ra8+ {[%emt 0:00:00]} Bd8 {[%emt 0:00:00]} 25. O-O {[%emt 0:00:00]} O-O {[%emt 0:00:00]} 26. Rfa1 {[%emt 0:00:00]} g6 {[%emt 0:00:00]} 27. R1a4 {[%emt 0:00:00]} Bb6 {[%emt 0:00:00]} 28. R8a6 {[%emt 0:00:00]} Bc5 {[%emt 0:00:00]} 29. R4a5 {[%emt 0:00:00]} Rd8 {[%emt 0:00:00]} 30. Ra8 {[%emt 0:00:00]} Rxa8 {[%emt 0:00:00]} 31. Rxa8+ {[%emt 0:00:00]} Kg7 {[%emt 0:00:00]} 32. Ra5 {[%emt 0:00:00]} Bd6 {[%emt 0:00:00]} 33. Ra6 {[%emt 0:00:00]} Be7 {[%emt 0:00:00]} 34. Ra7 {[%emt 0:00:00]} Kf6 {[%emt 0:00:00]} 35. Ra6 {[%emt 0:00:00]} Bc5 {[%emt 0:00:00]} 36. Rc6 {[%emt 0:00:00]} Ba3 {[%emt 0:00:00]} 37. Ra6 {[%emt 0:02:57]} Bb2 {[%emt 0:00:00]} 38. c4 {[%emt 0:08:36]} Bd4 {[%emt 0:00:00]} 39. h3 {[%emt 0:03:21]} Kg5 {[%emt 0:00:00]} 40. g3 {[%emt 0:01:22]} Bxh3 {[%emt 0:06:51]} 41. Rc6 {[%emt 0:30:38]} Be6 {[%emt 0:08:07]} 42. Rc7 {[%emt 0:00:00]} Kf6 {[%emt 0:02:05]} 43. c5 {[%emt 0:00:00]} Bc4 {[%emt 0:02:58]} 44. Kg2 {[%emt 0:00:00]} h5 {[%emt 0:04:40]} 45. Kf3 {[%emt 0:01:48]} Ke6 {[%emt 0:01:35]} 46. Kg2 {[%emt 0:00:34]} g5 {[%emt 0:05:09]} 47. Rc6+ {[%emt 0:00:32]} Ke7 {[%emt 0:00:47]} 48. Rh6 {[%emt 0:00:13]} Be2 {[%emt 0:01:44]} 49. f3 {[%emt 0:00:56]} g4 {[%emt 0:01:22]} 50. f4 {[%emt 0:00:24]} Bf3+ {[%emt 0:00:48]} 51. Kh2 {[%emt 0:00:19]} exf4 {[%emt 0:00:45]} 52. Rxh5 {[%emt 0:00:16]} Bf2 {[%emt 0:01:23]} 53. Re5+ {[%emt 0:00:12]} Kd7 {[%emt 0:01:02]} 54. gxf4 {[%emt 0:00:54]} g3+ {[%emt 0:00:22]} 55. Kh3 {[%emt 0:00:03]} g2 {[%emt 0:00:35]} 56. Rg5 {[%emt 0:00:28]} g1=Q {[%emt 0:00:44]} 57. Rxg1 {[%emt 0:00:03]} Bxg1 {[%emt 0:00:08]} 58. e5 {[%emt 0:00:09]} Bxc5 {[%emt 0:00:43]} 59. f5 {[%emt 0:00:09]} Ke7 {[%emt 0:00:33]} 60. Kg3 {[%emt 0:00:53]} Be4 {[%emt 0:00:22]} 61. Kf4 {[%emt 0:00:05]} Bc2 {[%emt 0:00:20]} 62. Kg5 {[%emt 0:02:04]} Be3+ {[%emt 0:00:14]} 63. Kg4 {[%emt 0:00:29]} Bd2 {[%emt 0:00:21]} 64. e6 {[%emt 0:00:14]} f6 {[%emt 0:00:10]} 65. Kh5 {[%emt 0:00:25]} Bxf5 {[%emt 0:00:12]} 0-1

[Event "55th Ladies GM 2024"]
[Site "Belgrade9"]
[Date "2024.03.06"]
[Round "5.2"]
[White "Mehmed, Elif"]
[Black "Maltsevskaya, Aleksandra"]
[Result "0-1"]
[ECO "B10"]
[WhiteElo "2194"]
[BlackElo "2374"]
[Annotator "TA"]
[PlyCount "76"]
[EventDate "2024.03.02"]
[EventType "tourn"]
[EventCountry "SRB"]
[SourceTitle "playchess.com"]
[Source "ChessBase"]
[SourceQuality "1"]
[TimeControl "40/5400+30:1800+30"]

{[%evp 9,76,16,18,18,31,50,36,44,120,118,117,112,117,93,126,86,97,98,133,-57,-56,-69,-78,-62,-60,-127,-116,-138,-99,-96,-120,-101,-108,-166,-93,-151,-143,-149,-126,-150,-137,-111,-93,-142,-139,-131,-141,-218,-214,-220,-220,-308,-301,-715,-699,-775,-747,-960,-937,-866,-856,-856,-808,-681,-681,-1004,-939,-29989,-29990]} 1. e4 {[%emt 0:00:03]} c6 {[%emt 0:00:07]} 2. Nf3 {[%emt 0:00:21]} d5 {[%emt 0:00:10]} 3. d3 {[%emt 0:00:08]} g6 {[%emt 0:02:46]} 4. e5 {[%emt 0:00:05]} c5 {[%emt 0:11:35]} 5. c3 {[%emt 0:00:09]} d4 {[%emt 0:05:40]} 6. b4 {[%emt 0:16:08]} Bg7 {[%emt 0:07:13]} 7. bxc5 {[%emt 0:02:46]} Nc6 {[%emt 0:02:06]} 8. cxd4 {[%emt 0:07:25][%cal Od4d5] White is slightly better.} Nxd4 {[%emt 0:08:28]} (8... Nh6 $14) 9. Qa4+ $16 {[%emt 0:03:07]} Nc6 {[%emt 0:00:06]} 10. d4 {[%emt 0:01:18] Black is weak on the dark squares} Nh6 {[%emt 0:01:14]} 11. Bb2 {[%emt 0:04:42]} Bd7 {[%emt 0:09:14][%cal Oc6e5]} 12. Qd1 {[%emt 0:04:45]} Bg4 {[%emt 0:01:57]} 13. Nbd2 {[%emt 0:02:33]} Nf5 {[%emt 0:01:57][%cal Og4f3] [#]} 14. Bd3 $2 {[%emt 0:16:07]} (14. Qa4 $1 $16) 14... Nfxd4 $15 {[%emt 0:05:21]} 15. Bxd4 {[%emt 0:13:08]} Nxd4 {[%emt 0:00:06]} 16. Qa4+ {[%emt 0:00:04]} Nc6 {[%emt 0:00:07]} 17. Qxg4 {[%emt 0:02:54]} (17. Bb5 $15 Bd7 18. Nc4) 17... Qxd3 $17 {[%emt 0:00:05]} 18. Rb1 {[%emt 0:00:49]} Nxe5 {[%emt 0:10:41]} 19. Nxe5 {[%emt 0:00:25]} Bxe5 {[%emt 0:00:08]} 20. Qa4+ {[%emt 0:06:01]} Kf8 {[%emt 0:00:09] Black is much more active.} 21. Qb5 {[%emt 0:00:04]} (21. Qc4 $17 {is a better defense.} Qd7 22. Ke2) 21... Qc2 {[%emt 0:00:33]} (21... Qxb5 22. Rxb5 Rc8 23. O-O $17) (21... Qc3 $19 {aiming for ...Rd8.} 22. Qb3 Rd8 (22... Qxc5 $2 23. O-O $17) 23. Qxc3 Bxc3) 22. Qb3 {[%emt 0:03:22]} ({White should try} 22. Qc4 Qxc4 (22... Bc3 23. O-O $11) 23. Nxc4 Bc3+ 24. Ke2) 22... Qxc5 {[%emt 0:00:09] [#] And now ...Bc3 would win.} 23. O-O {[%emt 0:00:36]} b6 {[%emt 0:02:30]} 24. Ne4 {[%emt 0:02:10]} Qc7 {[%emt 0:08:54]} 25. Rbc1 {[%emt 0:03:38]} Qd7 {[%emt 0:10:20]} 26. f4 {[%emt 0:01:54]} (26. Rcd1 $142 Bd4 27. Ng5) 26... Bd4+ {[%emt 0:02:04]} 27. Kh1 {[%emt 0:00:05]} Kg7 {[%emt 0:00:14]} 28. f5 {[%emt 0:01:34]} (28. Ng5 $17 Qe8 29. Nf3) 28... f6 $19 {[%emt 0:01:01]} (28... gxf5 29. Rcd1 Rac8 (29... fxe4 30. Qxf7+ Kh6 31. Rf4) 30. Ng3 $11) 29. Rcd1 {[%emt 0:01:15]} Rad8 {[%emt 0:00:08]} (29... gxf5 $2 {perishes.} 30. Ng3 e6 31. Nh5+ (31. Rf4 Rad8 $18) 31... Kf7 32. Rxf5 $18) 30. fxg6 {[%emt 0:00:49]} hxg6 {[%emt 0:00:05] Threatens to win with ...Qg4.} 31. Ng5 $2 {[%emt 0:00:39]} (31. h3) 31... fxg5 {[%emt 0:02:56]} 32. Rf7+ {[%emt 0:06:01]} Kh6 {[%emt 0:00:06]} 33. Qf3 {[%emt 0:00:30]} Qe6 {[%emt 0:04:29][%cal Od4f6] Strongly threatening ...Bf6!} 34. g4 {[%emt 0:01:22]} Qe3 {[%emt 0:00:06]} ({Inferior is} 34... Qxa2 35. Qh3#) 35. Rf1 {[%emt 0:00:30]} Rh7 {[%emt 0:00:15] ( -> ...Rxf7)} (35... Qxf3+ $2 36. R1xf3 $17) 36. Rxh7+ {[%emt 0:00:30]} Kxh7 {[%emt 0:00:06]} 37. Qf7+ {[%emt 0:00:29]} Bg7 {[%emt 0:00:45] White must now prevent ...Rf8.} 38. Rf3 {[%emt 0:00:29]} Rd1+ {[%emt 0:00:07] Weighted Error Value: White=0.82/Black=0.16 (very precise) .  Mistake:       	White=7     	Black=2      Inaccurate:     	White=2     	Black=2      OK:         	White=10    	Black=7      Best:        	White=2     	Black=5} 0-1

[Event "55th Ladies GM 2024"]
[Site "Belgrade9"]
[Date "2024.03.06"]
[Round "5.3"]
[White "Lu, Miaoyi"]
[Black "Kulkarni Bhakti"]
[Result "1/2-1/2"]
[ECO "D94"]
[WhiteElo "2392"]
[BlackElo "2372"]
[Annotator "TA"]
[PlyCount "127"]
[EventDate "2024.03.02"]
[EventType "tourn"]
[EventCountry "SRB"]
[SourceTitle "playchess.com"]
[Source "ChessBase"]
[SourceQuality "1"]
[TimeControl "40/5400+30:1800+30"]

{[%evp 39,127,25,36,8,0,0,54,63,122,-17,-11,-43,-35,-75,0,-56,-76,-70,-58,-70,-65,-132,-39,-41,-48,-37,-51,-39,-10,-88,0,0,0,0,0,0,0,0,0,0,0,0,0,0,0,0,0,0,0,0,0,0,0,0,0,0,0,-8,-8,-8,-8,-8,0,0,0,0,0,0,0,0,0,0,0,0,0,0,0,0,0,0,0,0,8,8,8,8,8,8,8,8]} 1. Nf3 {[%emt 0:00:02]} d5 {[%emt 0:02:26]} 2. e3 {[%emt 0:00:08]} Nf6 {[%emt 0:01:42]} 3. c4 {[%emt 0:00:07]} g6 {[%emt 0:06:01]} 4. d4 {[%emt 0:06:49]} c6 {[%emt 0:01:30]} 5. Nc3 {[%emt 0:04:24]} Bg7 {[%emt 0:00:24]} 6. cxd5 {[%emt 0:00:25]} cxd5 {[%emt 0:01:12]} 7. Bb5+ {[%emt 0:00:02]} Nbd7 {[%emt 0:11:40]} 8. Qb3 {[%emt 0:00:03]} e6 {[%emt 0:01:38]} 9. Bd2 {[%emt 0:03:08] D94: Grünfeld: 4 Nf3 Bg7 5 e3.} O-O {[%emt 0:01:03]} 10. O-O {[%emt 0:04:41]} Ne4 {[%emt 0:02:23]} 11. Be1 {[%emt 0:05:36]} Nd6 {[%emt 0:06:49]} 12. Bd3 {[%emt 0:00:12]} a6 $146 {[%emt 0:03:34]} ({Predecessor:} 12... Nb6 13. a4 Bd7 14. Nb5 Bxb5 15. axb5 Qc7 16. Qd1 Rfc8 {½-½ Javakhishvili,L (2469)-Nikolaidis,I (2545) Isthmia op 1st 2011 (6)}) 13. Ne2 {[%emt 0:01:25]} a5 {[%emt 0:07:42]} 14. a4 {[%emt 0:05:27]} Nb8 {[%emt 0:08:12]} 15. Nc3 {[%emt 0:01:58]} Nc6 {[%emt 0:03:13]} 16. Nb5 {[%emt 1:04:03]} f5 {[%emt 0:06:09]} 17. Nxd6 {[%emt 0:00:00]} Qxd6 {[%emt 0:00:03]} 18. Rc1 {[%emt 0:00:00]} Bf6 {[%emt 0:01:31]} 19. Rc5 {[%emt 0:00:00]} Bd7 {[%emt 0:02:10]} 20. Bb5 {[%emt 0:00:00]} (20. Qxb7 $2 Rfb8 $19) 20... Rfc8 {[%emt 0:08:03]} 21. Bxc6 {[%emt 0:00:00]} Bxc6 {[%emt 0:00:50]} 22. Bxa5 {[%emt 0:00:00]} e5 {[%emt 0:05:00]} (22... Qd7 $11) 23. Bb4 {[%emt 0:00:00]} e4 {[%emt 0:00:47]} (23... exd4 $14 24. Nxd4 Bxd4) 24. Nd2 {[%emt 0:00:00]} ({White should try} 24. Ne5 $1 $16 {[%cal Oc5c6] Threatens to win with Rxc6!} Qe6 25. a5) 24... Qe6 $11 {[%emt 0:01:13]} 25. Ra5 {[%emt 0:00:00]} f4 {[%emt 0:08:46]} 26. Qd1 {[%emt 0:00:00]} Bg5 {[%emt 0:01:24]} (26... fxe3 $17 27. fxe3 Bg5) 27. Re1 {[%emt 0:00:00]} ({White should play} 27. Rxa8 $11 Rxa8 28. exf4 Rxa4 29. fxg5 Rxb4 30. Qc1 (30. Nb3 Qf5 $15) 30... Rxd4 31. Nb3) 27... Rxa5 $15 {[%emt 0:00:58]} 28. Bxa5 {[%emt 0:00:00]} fxe3 {[%emt 0:00:33]} 29. fxe3 {[%emt 0:00:03]} Ra8 {[%emt 0:00:07]} 30. b4 {[%emt 0:02:02]} (30. Bb4 $15) 30... Qd7 {[%emt 0:00:10]} ({Better is} 30... Bd7 $17 {...b6 would now be deadly.} 31. Qb3 Ra6 (31... b6 32. Bxb6 Bxa4 33. Qa2 $15)) 31. Nb3 $1 $15 {[%emt 0:01:21]} Bxa4 {[%emt 0:01:21]} 32. Nc5 $1 {[%emt 0:00:03]} Bxd1 {[%emt 0:00:09]} 33. Nxd7 {[%emt 0:00:02]} Bg4 {[%emt 0:01:32]} 34. Nc5 {[%emt 0:00:30]} (34. Nb6 $11 {remains equal.} Rd8 35. b5) 34... Bh4 {[%emt 0:01:56]} (34... b5 $17) 35. g3 $11 {[%emt 0:04:05]} Be7 {[%emt 0:00:23]} 36. Nxb7 {[%emt 0:00:08]} Bxb4 {[%emt 0:00:40]} 37. Bxb4 {[%emt 0:00:01]} Rb8 {[%emt 0:00:06]} 38. Na5 {[%emt 0:01:30]} Rxb4 {[%emt 0:00:03]} 39. Nc6 {[%emt 0:00:07]} Rb2 {[%emt 0:01:26]} 40. Ne7+ {[%emt 0:00:34]} Kg7 {[%emt 0:00:35]} 41. Nxd5 {[%emt 0:07:51]} Bf3 {[%emt 0:00:45]} 42. Ra1 {[%emt 0:04:07]} Rg2+ {[%emt 0:01:44]} 43. Kf1 {[%emt 0:00:01]} Rxh2 {[%emt 0:00:22]} 44. Ra7+ {[%emt 0:00:03]} Kh6 {[%emt 0:03:26]} 45. Nf6 {[%emt 0:00:58]} Kg5 {[%emt 0:03:15]} 46. Rxh7 {[%emt 0:01:26]} Ra2 {[%emt 0:06:29]} 47. Rf7 {[%emt 0:06:50]} Ra6 {[%emt 0:04:04]} 48. Nh7+ {[%emt 0:01:32]} Kg4 {[%emt 0:01:30]} 49. Rf6 {[%emt 0:00:03]} Ra1+ {[%emt 0:01:29]} 50. Kf2 {[%emt 0:00:02]} Ra2+ {[%emt 0:00:37]} 51. Ke1 $1 {[%emt 0:00:01]} g5 {[%emt 0:00:25]} 52. Rg6 {[%emt 0:00:12]} Ra1+ {[%emt 0:03:46]} 53. Kd2 {[%emt 0:03:39]} Ra2+ {[%emt 0:00:20]} 54. Kc3 {[%emt 0:05:48]} Kxg3 {[%emt 0:01:00]} 55. Nxg5 {[%emt 0:00:04]} (55. Rxg5+ $2 {perishes.} Kf2 $17) 55... Kf2 $1 {[%emt 0:00:16]} 56. d5 {[%emt 0:00:17]} Kxe3 {[%emt 0:00:45]} 57. d6 {[%emt 0:00:05]} Ra3+ {[%emt 0:01:01]} 58. Kb4 {[%emt 0:03:59]} Rd3 {[%emt 0:00:36]} 59. Nf7 {[%emt 0:00:19]} Bh5 {[%emt 0:02:54]} 60. Rg3+ {[%emt 0:00:05]} Ke2 {[%emt 0:00:26]} 61. Rxd3 {[%emt 0:00:48]} exd3 {[%emt 0:00:02]} 62. d7 {[%emt 0:00:16]} d2 $1 {[%emt 0:00:06]} 63. d8=Q {[%emt 0:00:19]} d1=Q {[%emt 0:00:11]} 64. Qxd1+ {[%emt 0:00:22]} 1/2-1/2